[Event "Early-Titled-Tuesday-Blitz-April-16-2024"]
[Site "Chess.com"]
[Date "2024.04.16"]
[Round "3"]
[White "LileKoridze"]
[Black "lupta_robin"]
[Result "1-0"]
[WhiteElo "2393"]
[BlackElo "2578"]
[TimeControl "180+1"]
[EndTime "8:27:11 PDT"]
[Termination "LileKoridze won by resignation"]

1. d4 {[%clk 0:03:00.9]} 1... Nf6 {[%clk 0:02:58.6]} 2. c4 {[%clk 0:03:00.8]}
2... g6 {[%clk 0:02:58.2]} 3. Nc3 {[%clk 0:03:00.9]} 3... Bg7 {[%clk 0:02:58.8]}
4. e4 {[%clk 0:03:01.1]} 4... O-O {[%clk 0:02:58.5]} 5. Nf3 {[%clk 0:03:01.6]}
5... d6 {[%clk 0:02:59.1]} 6. Be2 {[%clk 0:03:02.2]} 6... e5 {[%clk 0:02:59.7]}
7. O-O {[%clk 0:03:02.7]} 7... Nh5 {[%clk 0:03:00.4]} 8. d5 {[%clk 0:03:02.7]}
8... Nf4 {[%clk 0:02:58.7]} 9. Bxf4 {[%clk 0:03:02.5]} 9... exf4 {[%clk
0:02:59]} 10. Qd2 {[%clk 0:03:02.7]} 10... g5 {[%clk 0:02:58.9]} 11. h3 {[%clk
0:03:03.1]} 11... Nd7 {[%clk 0:02:54.2]} 12. Nd4 {[%clk 0:03:03]} 12... Ne5
{[%clk 0:02:50.4]} 13. Nf5 {[%clk 0:03:03.1]} 13... Bxf5 {[%clk 0:02:44.4]} 14.
exf5 {[%clk 0:03:04]} 14... f3 {[%clk 0:02:17.4]} 15. Bd3 {[%clk 0:02:52.5]}
15... fxg2 {[%clk 0:02:12.6]} 16. Kxg2 {[%clk 0:02:52.9]} 16... g4 {[%clk
0:01:42]} 17. hxg4 {[%clk 0:02:47]} 17... Qh4 {[%clk 0:01:42.3]} 18. Be2 {[%clk
0:02:43.2]} 18... Bh6 {[%clk 0:01:01.3]} 19. Qd1 {[%clk 0:02:38.6]} 19... Bf4
{[%clk 0:00:55.9]} 20. Rh1 {[%clk 0:02:38.8]} 20... Qg5 {[%clk 0:00:56.4]} 21.
Ne4 {[%clk 0:02:37.7]} 21... Qg7 {[%clk 0:00:55.5]} 22. Rh5 {[%clk 0:02:27.4]}
22... f6 {[%clk 0:00:47.8]} 23. f3 {[%clk 0:02:25.1]} 23... Kf7 {[%clk
0:00:46.7]} 24. Qb3 {[%clk 0:02:10.7]} 24... b6 {[%clk 0:00:45]} 25. Rah1 {[%clk
0:02:10.1]} 25... h6 {[%clk 0:00:44.8]} 26. Nc3 {[%clk 0:01:58.5]} 26... Rae8
{[%clk 0:00:43.3]} 27. Qc2 {[%clk 0:01:52.6]} 27... Rg8 {[%clk 0:00:39.9]} 28.
Nb5 {[%clk 0:01:51.7]} 28... Re7 {[%clk 0:00:28.8]} 29. Nd4 {[%clk 0:01:51.5]}
29... a5 {[%clk 0:00:17.4]} 30. Ne6 {[%clk 0:01:51.2]} 30... Rxe6 {[%clk
0:00:18.1]} 31. dxe6+ {[%clk 0:01:46.2]} 31... Ke7 {[%clk 0:00:17.8]} 32. Qe4
{[%clk 0:01:44.3]} 32... Bd2 {[%clk 0:00:15.2]} 33. Qb7 {[%clk 0:01:41.6]} 1-0

[Event "Early-Titled-Tuesday-Blitz-April-16-2024"]
[Site "Chess.com"]
[Date "2024.04.16"]
[Round "3"]
[White "Eliwood44"]
[Black "Yan_Dyomin2010"]
[Result "0-1"]
[WhiteElo "2479"]
[BlackElo "2652"]
[TimeControl "180+1"]
[EndTime "8:27:24 PDT"]
[Termination "Yan_Dyomin2010 won by resignation"]

1. d4 {[%clk 0:03:00.9]} 1... Nf6 {[%clk 0:02:59.3]} 2. Nf3 {[%clk 0:02:57]}
2... b6 {[%clk 0:02:57.3]} 3. c4 {[%clk 0:02:56.8]} 3... e6 {[%clk 0:02:56.1]}
4. g3 {[%clk 0:02:55.6]} 4... Bb7 {[%clk 0:02:54.2]} 5. Bg2 {[%clk 0:02:56.1]}
5... Bb4+ {[%clk 0:02:53.2]} 6. Bd2 {[%clk 0:02:53.7]} 6... Bxd2+ {[%clk
0:02:53.5]} 7. Nbxd2 {[%clk 0:02:53.8]} 7... O-O {[%clk 0:02:54.1]} 8. Qc2
{[%clk 0:02:53.2]} 8... d5 {[%clk 0:02:48.4]} 9. O-O {[%clk 0:02:41.5]} 9...
Nbd7 {[%clk 0:02:45.7]} 10. Rfc1 {[%clk 0:02:39.9]} 10... c5 {[%clk 0:02:44]}
11. cxd5 {[%clk 0:02:27.6]} 11... Bxd5 {[%clk 0:02:40.7]} 12. e4 {[%clk
0:02:25.4]} 12... Bb7 {[%clk 0:02:39.7]} 13. e5 {[%clk 0:02:22.6]} 13... Nd5
{[%clk 0:02:38.8]} 14. Ne4 {[%clk 0:02:20.2]} 14... Nb4 {[%clk 0:02:35.6]} 15.
Qb1 {[%clk 0:02:18.7]} 15... Bxe4 {[%clk 0:02:33.5]} 16. Qxe4 {[%clk 0:02:18]}
16... Rc8 {[%clk 0:02:26.8]} 17. a3 {[%clk 0:02:16.7]} 17... Nc6 {[%clk
0:02:20]} 18. d5 {[%clk 0:02:11.3]} 18... exd5 {[%clk 0:02:19.5]} 19. Qxd5
{[%clk 0:02:12.2]} 19... Ndxe5 {[%clk 0:02:12.1]} 20. Nxe5 {[%clk 0:01:50.6]}
20... Qxd5 {[%clk 0:02:12.4]} 21. Bxd5 {[%clk 0:01:43.1]} 21... Nxe5 {[%clk
0:02:13.3]} 22. Re1 {[%clk 0:01:42.6]} 22... Rfe8 {[%clk 0:02:11.9]} 23. f4
{[%clk 0:01:38.1]} 23... Rcd8 {[%clk 0:02:06.2]} 24. Rad1 {[%clk 0:01:30]} 24...
Rxd5 {[%clk 0:01:59.4]} 25. fxe5 {[%clk 0:01:24.1]} 25... Rxd1 {[%clk
0:01:48.9]} 26. Rxd1 {[%clk 0:01:25]} 26... g6 {[%clk 0:01:49.1]} 27. Rd7 {[%clk
0:01:19.9]} 27... Rxe5 {[%clk 0:01:49.4]} 28. Rxa7 {[%clk 0:01:19.7]} 28... Re2
{[%clk 0:01:50]} 29. b4 {[%clk 0:01:19.3]} 29... cxb4 {[%clk 0:01:48.8]} 30.
axb4 {[%clk 0:01:20.2]} 30... Rb2 {[%clk 0:01:48.8]} 31. Rb7 {[%clk 0:01:19.4]}
31... Rxb4 {[%clk 0:01:48.9]} 32. Kg2 {[%clk 0:01:20]} 32... Rb3 {[%clk
0:01:48.6]} 33. h4 {[%clk 0:01:20.1]} 33... Kg7 {[%clk 0:01:47.8]} 34. g4 {[%clk
0:01:20.2]} 34... h6 {[%clk 0:01:46.8]} 35. Kh2 {[%clk 0:01:17.1]} 35... Kf6
{[%clk 0:01:46.5]} 36. Kg2 {[%clk 0:01:17.2]} 36... Ke6 {[%clk 0:01:43.7]} 37.
Kh2 {[%clk 0:01:15.2]} 37... b5 {[%clk 0:01:43.3]} 38. Kg2 {[%clk 0:01:13.8]}
38... Kf6 {[%clk 0:01:38.9]} 39. Kh2 {[%clk 0:01:12.9]} 39... h5 {[%clk
0:01:37.5]} 40. gxh5 {[%clk 0:01:11.7]} 40... gxh5 {[%clk 0:01:37.2]} 41. Kg2
{[%clk 0:01:11]} 41... Kg6 {[%clk 0:01:36.5]} 42. Kh2 {[%clk 0:01:10.3]} 42...
f6 {[%clk 0:01:36.8]} 43. Rb8 {[%clk 0:01:08.3]} 43... Kf5 {[%clk 0:01:36.4]}
44. Rg8 {[%clk 0:01:04.9]} 44... b4 {[%clk 0:01:35.9]} 45. Rh8 {[%clk
0:01:01.1]} 45... Kg4 {[%clk 0:01:35.2]} 46. Rf8 {[%clk 0:01:01.8]} 46... f5
{[%clk 0:01:34.6]} 47. Kg2 {[%clk 0:01:02]} 47... Rb2+ {[%clk 0:01:33.8]} 48.
Kf1 {[%clk 0:01:01.7]} 48... f4 {[%clk 0:01:34.2]} 49. Ke1 {[%clk 0:00:59.7]}
49... b3 {[%clk 0:01:33.6]} 50. Rf7 {[%clk 0:00:57.6]} 50... Rh2 {[%clk
0:01:31.9]} 51. Rb7 {[%clk 0:00:54]} 51... b2 {[%clk 0:01:32.1]} 52. Rb4 {[%clk
0:00:54.9]} 52... Rh1+ {[%clk 0:01:31.4]} 53. Kf2 {[%clk 0:00:54]} 53... b1=Q
{[%clk 0:01:31.2]} 0-1

[Event "Early-Titled-Tuesday-Blitz-April-16-2024"]
[Site "Chess.com"]
[Date "2024.04.16"]
[Round "3"]
[White "Eloist"]
[Black "temiksmozg"]
[Result "0-1"]
[WhiteElo "2489"]
[BlackElo "2655"]
[TimeControl "180+1"]
[EndTime "8:27:28 PDT"]
[Termination "temiksmozg won on time"]

1. e4 {[%clk 0:03:00.9]} 1... c5 {[%clk 0:02:59.3]} 2. Nf3 {[%clk 0:03:00.7]}
2... e6 {[%clk 0:02:58.5]} 3. d4 {[%clk 0:03:00.4]} 3... cxd4 {[%clk 0:02:59.4]}
4. Nxd4 {[%clk 0:03:00.9]} 4... Nf6 {[%clk 0:02:54]} 5. Nc3 {[%clk 0:03:00.6]}
5... Nc6 {[%clk 0:02:54.1]} 6. Nxc6 {[%clk 0:03:00.4]} 6... bxc6 {[%clk
0:02:55]} 7. e5 {[%clk 0:03:00.3]} 7... Nd5 {[%clk 0:02:55.3]} 8. Ne4 {[%clk
0:02:59.9]} 8... Qc7 {[%clk 0:02:55.8]} 9. f4 {[%clk 0:02:58.7]} 9... Qb6 {[%clk
0:02:56.4]} 10. c4 {[%clk 0:02:53.3]} 10... Bb4+ {[%clk 0:02:55.6]} 11. Ke2
{[%clk 0:02:50.3]} 11... Ba6 {[%clk 0:02:55.7]} 12. Kf3 {[%clk 0:02:38.4]} 12...
f5 {[%clk 0:02:55.4]} 13. exf6 {[%clk 0:02:06.5]} 13... Nxf6 {[%clk 0:02:55.2]}
14. Be3 {[%clk 0:01:57.7]} 14... c5 {[%clk 0:02:48.1]} 15. Nd6+ {[%clk
0:01:20.8]} 15... Ke7 {[%clk 0:02:44.8]} 16. a3 {[%clk 0:01:19.7]} 16... Qxd6
{[%clk 0:02:21.6]} 17. Qxd6+ {[%clk 0:01:13.3]} 17... Kxd6 {[%clk 0:02:22.5]}
18. axb4 {[%clk 0:01:10.5]} 18... Bb7+ {[%clk 0:02:22.9]} 19. Kg3 {[%clk
0:00:49.7]} 19... cxb4 {[%clk 0:02:23.8]} 20. Be2 {[%clk 0:00:26.4]} 20... a5
{[%clk 0:02:15.9]} 21. Bb6 {[%clk 0:00:13.4]} 21... a4 {[%clk 0:02:09.3]} 22.
Rhd1+ {[%clk 0:00:13.1]} 22... Kc6 {[%clk 0:02:08.4]} 23. Bd4 {[%clk 0:00:12.9]}
23... Ne4+ {[%clk 0:01:49]} 24. Kh3 {[%clk 0:00:10.3]} 24... a3 {[%clk 0:01:43]}
25. Bf3 {[%clk 0:00:07.6]} 25... Kc7 {[%clk 0:01:27.6]} 26. bxa3 {[%clk
0:00:06.4]} 26... Rxa3 {[%clk 0:01:27.2]} 27. Rxa3 {[%clk 0:00:05.6]} 27... bxa3
{[%clk 0:01:28.1]} 28. Ra1 {[%clk 0:00:03.6]} 28... Ra8 {[%clk 0:01:27.5]} 29.
Bxg7 {[%clk 0:00:02.1]} 29... Nd2 {[%clk 0:01:21]} 0-1

[Event "Early-Titled-Tuesday-Blitz-April-16-2024"]
[Site "Chess.com"]
[Date "2024.04.16"]
[Round "3"]
[White "chessfatbear"]
[Black "Vahe_Danielyan"]
[Result "0-1"]
[WhiteElo "2844"]
[BlackElo "2610"]
[TimeControl "180+1"]
[EndTime "8:27:33 PDT"]
[Termination "Vahe_Danielyan won on time"]

1. c4 {[%clk 0:02:59]} 1... e5 {[%clk 0:02:58.3]} 2. g3 {[%clk 0:02:57.6]} 2...
c6 {[%clk 0:02:57.2]} 3. d4 {[%clk 0:02:51.9]} 3... e4 {[%clk 0:02:53.5]} 4. Nc3
{[%clk 0:02:51]} 4... Bb4 {[%clk 0:02:48.4]} 5. Qb3 {[%clk 0:02:47.1]} 5... Na6
{[%clk 0:02:45.4]} 6. a3 {[%clk 0:02:45.5]} 6... Bxc3+ {[%clk 0:02:44.7]} 7.
Qxc3 {[%clk 0:02:45.6]} 7... Nf6 {[%clk 0:02:45.6]} 8. Nh3 {[%clk 0:02:39.4]}
8... O-O {[%clk 0:02:44.2]} 9. Bg2 {[%clk 0:02:39.2]} 9... d5 {[%clk 0:02:43.4]}
10. Bg5 {[%clk 0:02:39.5]} 10... h6 {[%clk 0:02:40.4]} 11. Bxf6 {[%clk
0:02:39.4]} 11... Qxf6 {[%clk 0:02:41.3]} 12. Nf4 {[%clk 0:02:39.8]} 12... g5
{[%clk 0:02:36.2]} 13. Nh3 {[%clk 0:02:24.6]} 13... Be6 {[%clk 0:02:34.7]} 14.
cxd5 {[%clk 0:02:04.4]} 14... cxd5 {[%clk 0:02:35.6]} 15. O-O {[%clk 0:02:04.7]}
15... Rac8 {[%clk 0:02:27.7]} 16. Qd2 {[%clk 0:01:54.7]} 16... Qg6 {[%clk
0:02:23.2]} 17. f4 {[%clk 0:01:46.6]} 17... exf3 {[%clk 0:02:18.4]} 18. exf3
{[%clk 0:01:45.7]} 18... Rc2 {[%clk 0:02:18.2]} 19. Qe3 {[%clk 0:01:42.1]} 19...
Re8 {[%clk 0:02:08.5]} 20. Nf2 {[%clk 0:01:41.1]} 20... Bd7 {[%clk 0:01:59.1]}
21. Qb3 {[%clk 0:01:40.7]} 21... Ree2 {[%clk 0:01:59.3]} 22. Qxb7 {[%clk
0:01:37.8]} 22... Qe6 {[%clk 0:01:45.6]} 23. f4 {[%clk 0:00:37]} 23... Qe3
{[%clk 0:01:39.9]} 24. Kh1 {[%clk 0:00:06.4]} 24... Rxf2 {[%clk 0:01:36.9]} 25.
Rxf2 {[%clk 0:00:02.9]} 25... Qxf2 {[%clk 0:01:37.8]} 26. Qxd5 {[%clk
0:00:01.9]} 26... Bc6 {[%clk 0:01:24.8]} 27. Qd8+ {[%clk 0:00:01.4]} 27... Kh7
{[%clk 0:01:21.4]} 0-1

[Event "Early-Titled-Tuesday-Blitz-April-16-2024"]
[Site "Chess.com"]
[Date "2024.04.16"]
[Round "3"]
[White "Squirlolz"]
[Black "vedantgoswami"]
[Result "1-0"]
[WhiteElo "2580"]
[BlackElo "2337"]
[TimeControl "180+1"]
[EndTime "8:27:36 PDT"]
[Termination "Squirlolz won by resignation"]

1. e4 {[%clk 0:03:00.9]} 1... c6 {[%clk 0:02:58.1]} 2. c3 {[%clk 0:02:57.3]}
2... d5 {[%clk 0:02:57]} 3. e5 {[%clk 0:02:57.8]} 3... Bf5 {[%clk 0:02:55.4]} 4.
Nf3 {[%clk 0:02:55.8]} 4... e6 {[%clk 0:02:55.3]} 5. Be2 {[%clk 0:02:56.1]} 5...
h6 {[%clk 0:02:49.4]} 6. O-O {[%clk 0:02:56.2]} 6... Ne7 {[%clk 0:02:48.5]} 7.
Na3 {[%clk 0:02:54.3]} 7... Nc8 {[%clk 0:02:44.9]} 8. Nc2 {[%clk 0:02:53.5]}
8... Be7 {[%clk 0:02:44.7]} 9. Ne3 {[%clk 0:02:51.6]} 9... Bg6 {[%clk
0:02:42.6]} 10. d4 {[%clk 0:02:51.1]} 10... Nd7 {[%clk 0:02:40.1]} 11. Ne1
{[%clk 0:02:51.5]} 11... c5 {[%clk 0:02:38.2]} 12. Nd3 {[%clk 0:02:46.9]} 12...
cxd4 {[%clk 0:02:35.6]} 13. cxd4 {[%clk 0:02:47]} 13... Ncb6 {[%clk 0:02:23.6]}
14. Nf4 {[%clk 0:02:47.3]} 14... Bh7 {[%clk 0:02:21.4]} 15. Nh5 {[%clk
0:02:47.8]} 15... O-O {[%clk 0:02:20.5]} 16. Bd3 {[%clk 0:02:48.1]} 16... Rc8
{[%clk 0:02:16.7]} 17. Bxh7+ {[%clk 0:02:42]} 17... Kxh7 {[%clk 0:02:16.1]} 18.
Qg4 {[%clk 0:02:42.9]} 18... Rg8 {[%clk 0:02:13]} 19. b3 {[%clk 0:02:29]} 19...
Nf8 {[%clk 0:02:09.9]} 20. f4 {[%clk 0:02:28.6]} 20... Rc3 {[%clk 0:02:04.1]}
21. f5 {[%clk 0:02:20.3]} 21... Bg5 {[%clk 0:01:58.7]} 22. Rf3 {[%clk 0:02:05]}
22... Qc8 {[%clk 0:01:52.8]} 23. Bd2 {[%clk 0:01:51.3]} 23... Bxe3+ {[%clk
0:01:50.1]} 24. Bxe3 {[%clk 0:01:47.6]} 24... exf5 {[%clk 0:01:49]} 25. Qh3
{[%clk 0:01:28.9]} 25... Ng6 {[%clk 0:01:42.2]} 26. Nf6+ {[%clk 0:01:24.5]}
26... Kh8 {[%clk 0:01:38.5]} 27. Bxh6 {[%clk 0:01:08.1]} 27... Rxf3 {[%clk
0:01:29.8]} 28. gxf3 {[%clk 0:01:06.1]} 28... f4 {[%clk 0:01:19.1]} 29. Qh5
{[%clk 0:00:40.1]} 1-0

[Event "Early-Titled-Tuesday-Blitz-April-16-2024"]
[Site "Chess.com"]
[Date "2024.04.16"]
[Round "3"]
[White "Vladimir_Zakhartsov"]
[Black "Hongjin"]
[Result "1-0"]
[WhiteElo "2936"]
[BlackElo "2653"]
[TimeControl "180+1"]
[EndTime "8:27:37 PDT"]
[Termination "Vladimir_Zakhartsov won by checkmate"]

1. d4 {[%clk 0:03:00.9]} 1... d6 {[%clk 0:02:59.6]} 2. e4 {[%clk 0:03:00.9]}
2... Nf6 {[%clk 0:02:59.6]} 3. Nc3 {[%clk 0:03:00.3]} 3... Nc6 {[%clk
0:03:00.2]} 4. Nf3 {[%clk 0:02:57.5]} 4... g6 {[%clk 0:03:00.6]} 5. Be3 {[%clk
0:02:41.2]} 5... Bg7 {[%clk 0:03:00.7]} 6. Qd2 {[%clk 0:02:41.7]} 6... e5 {[%clk
0:02:59.3]} 7. dxe5 {[%clk 0:02:29.6]} 7... Nxe5 {[%clk 0:02:50.5]} 8. Nxe5
{[%clk 0:02:19.9]} 8... dxe5 {[%clk 0:02:51.4]} 9. Qxd8+ {[%clk 0:02:20.5]} 9...
Kxd8 {[%clk 0:02:52.3]} 10. O-O-O+ {[%clk 0:02:20.8]} 10... Bd7 {[%clk
0:02:51.9]} 11. Bc4 {[%clk 0:02:16]} 11... Ke7 {[%clk 0:02:46.2]} 12. Bg5 {[%clk
0:02:03.2]} 12... c6 {[%clk 0:02:44.4]} 13. Bxf7 {[%clk 0:02:01.6]} 13... Bg4
{[%clk 0:02:04.7]} 14. f3 {[%clk 0:01:49.2]} 14... Bxf3 {[%clk 0:01:12.4]} 15.
gxf3 {[%clk 0:01:47.1]} 15... Kxf7 {[%clk 0:01:12]} 16. Bxf6 {[%clk 0:01:47.7]}
16... Kxf6 {[%clk 0:01:02.2]} 17. Rd7 {[%clk 0:01:48.4]} 17... Rab8 {[%clk
0:00:58.9]} 18. Rhd1 {[%clk 0:01:42.4]} 18... Bf8 {[%clk 0:00:48.7]} 19. Kd2
{[%clk 0:01:26.2]} 19... Bb4 {[%clk 0:00:34.1]} 20. Ke2 {[%clk 0:01:25.9]} 20...
Bxc3 {[%clk 0:00:23.8]} 21. bxc3 {[%clk 0:01:25.1]} 21... Kg5 {[%clk 0:00:22.5]}
22. Re7 {[%clk 0:01:07.8]} 22... Rhe8 {[%clk 0:00:04]} 23. Rxh7 {[%clk
0:01:04.8]} 23... Rh8 {[%clk 0:00:03]} 24. h4+ {[%clk 0:01:04.5]} 24... Kf6
{[%clk 0:00:02.9]} 25. Rd6# {[%clk 0:01:04]} 1-0

[Event "Early-Titled-Tuesday-Blitz-April-16-2024"]
[Site "Chess.com"]
[Date "2024.04.16"]
[Round "3"]
[White "GP9isback23"]
[Black "LeoWin2012"]
[Result "1/2-1/2"]
[WhiteElo "2651"]
[BlackElo "2312"]
[TimeControl "180+1"]
[EndTime "8:27:37 PDT"]
[Termination "Game drawn by repetition"]

1. d4 {[%clk 0:03:00.9]} 1... Nf6 {[%clk 0:02:57.9]} 2. Nf3 {[%clk 0:03:01]}
2... e6 {[%clk 0:02:57.7]} 3. c4 {[%clk 0:02:59.9]} 3... Bb4+ {[%clk 0:02:57.3]}
4. Bd2 {[%clk 0:02:59.9]} 4... Bxd2+ {[%clk 0:02:57.2]} 5. Qxd2 {[%clk
0:03:00.2]} 5... O-O {[%clk 0:02:55.3]} 6. Nc3 {[%clk 0:03:00.8]} 6... b6 {[%clk
0:02:55.3]} 7. g3 {[%clk 0:02:53.9]} 7... Bb7 {[%clk 0:02:55.1]} 8. Bg2 {[%clk
0:02:54.4]} 8... d6 {[%clk 0:02:54]} 9. O-O {[%clk 0:02:45.3]} 9... Nbd7 {[%clk
0:02:52.7]} 10. Qc2 {[%clk 0:02:36.1]} 10... c5 {[%clk 0:02:51.2]} 11. Rfd1
{[%clk 0:02:26.9]} 11... Qe7 {[%clk 0:02:45.3]} 12. d5 {[%clk 0:02:06.2]} 12...
exd5 {[%clk 0:02:44.5]} 13. Nh4 {[%clk 0:02:03.9]} 13... g6 {[%clk 0:02:39.8]}
14. e3 {[%clk 0:01:51.8]} 14... Rab8 {[%clk 0:02:36.5]} 15. Rd2 {[%clk
0:01:37.8]} 15... dxc4 {[%clk 0:02:35.3]} 16. Bxb7 {[%clk 0:01:36]} 16... Rxb7
{[%clk 0:02:36.2]} 17. Rad1 {[%clk 0:01:36.1]} 17... d5 {[%clk 0:02:30]} 18.
Nxd5 {[%clk 0:01:34.3]} 18... Nxd5 {[%clk 0:02:29.6]} 19. Rxd5 {[%clk 0:01:35]}
19... Nf6 {[%clk 0:02:26.5]} 20. Rd6 {[%clk 0:01:33.7]} 20... Ne4 {[%clk
0:02:24.1]} 21. R6d5 {[%clk 0:01:29.3]} 21... Nf6 {[%clk 0:02:17.2]} 22. R5d2
{[%clk 0:01:17.7]} 22... Rbb8 {[%clk 0:02:14.5]} 23. Qxc4 {[%clk 0:01:16.8]}
23... Rbd8 {[%clk 0:02:14.5]} 24. Nf3 {[%clk 0:01:03.8]} 24... Rxd2 {[%clk
0:02:13.3]} 25. Rxd2 {[%clk 0:01:04.7]} 25... Rd8 {[%clk 0:02:13.1]} 26. Qc2
{[%clk 0:00:42.3]} 26... Rd7 {[%clk 0:02:07]} 27. Rxd7 {[%clk 0:00:37.9]} 27...
Qxd7 {[%clk 0:02:06.2]} 28. Nd2 {[%clk 0:00:38.5]} 28... Kg7 {[%clk 0:02:04.2]}
29. Qc3 {[%clk 0:00:38.2]} 29... Qe6 {[%clk 0:01:52.2]} 30. e4 {[%clk
0:00:34.8]} 30... Qxa2 {[%clk 0:01:51]} 31. e5 {[%clk 0:00:28.2]} 31... Nd5
{[%clk 0:01:49.4]} 32. Qf3 {[%clk 0:00:28.4]} 32... Nb4 {[%clk 0:01:22.5]} 33.
Qf6+ {[%clk 0:00:24.6]} 33... Kg8 {[%clk 0:01:23.1]} 34. Qd8+ {[%clk 0:00:14.7]}
34... Kg7 {[%clk 0:01:23.4]} 35. Qf6+ {[%clk 0:00:13.3]} 35... Kg8 {[%clk
0:01:23.8]} 36. Qd8+ {[%clk 0:00:07.4]} 36... Kg7 {[%clk 0:01:23.9]} 37. Qf6+
{[%clk 0:00:03.7]} 1/2-1/2

[Event "Early-Titled-Tuesday-Blitz-April-16-2024"]
[Site "Chess.com"]
[Date "2024.04.16"]
[Round "3"]
[White "NMChessToImpress"]
[Black "stasOR4ik"]
[Result "1-0"]
[WhiteElo "2249"]
[BlackElo "2416"]
[TimeControl "180+1"]
[EndTime "8:27:38 PDT"]
[Termination "NMChessToImpress won by resignation"]

1. e4 {[%clk 0:02:58.2]} 1... c5 {[%clk 0:02:57.5]} 2. Nf3 {[%clk 0:02:57.7]}
2... Nc6 {[%clk 0:02:57.2]} 3. d4 {[%clk 0:02:56.6]} 3... cxd4 {[%clk
0:02:57.4]} 4. Nxd4 {[%clk 0:02:57.5]} 4... g6 {[%clk 0:02:57.6]} 5. Nc3 {[%clk
0:02:57.2]} 5... Bg7 {[%clk 0:02:57.9]} 6. Be3 {[%clk 0:02:57.9]} 6... d6 {[%clk
0:02:56.5]} 7. Bc4 {[%clk 0:02:55.7]} 7... Nf6 {[%clk 0:02:56.6]} 8. f3 {[%clk
0:02:55.6]} 8... O-O {[%clk 0:02:53.7]} 9. Qd2 {[%clk 0:02:55.5]} 9... a6 {[%clk
0:02:53.5]} 10. O-O-O {[%clk 0:02:52.8]} 10... Ne5 {[%clk 0:02:52.9]} 11. Bb3
{[%clk 0:02:52.4]} 11... b5 {[%clk 0:02:53.3]} 12. Bh6 {[%clk 0:02:47.9]} 12...
Nc4 {[%clk 0:02:42]} 13. Bxc4 {[%clk 0:02:42.1]} 13... bxc4 {[%clk 0:02:42.9]}
14. h4 {[%clk 0:02:35.9]} 14... e6 {[%clk 0:01:26.7]} 15. h5 {[%clk 0:02:31.2]}
15... Rb8 {[%clk 0:01:02.5]} 16. Nc6 {[%clk 0:02:26]} 16... Qb6 {[%clk
0:01:02.1]} 17. Nxb8 {[%clk 0:02:24.4]} 17... Qxb8 {[%clk 0:01:02.4]} 18. Bxg7
{[%clk 0:02:19.2]} 18... Kxg7 {[%clk 0:01:03.3]} 19. Qxd6 {[%clk 0:02:03.4]}
19... Qxd6 {[%clk 0:01:00.6]} 20. h6+ {[%clk 0:02:03.1]} 20... Kg8 {[%clk
0:00:58.9]} 21. Rxd6 {[%clk 0:02:03.2]} 21... Nh5 {[%clk 0:00:56]} 22. Rhd1
{[%clk 0:02:00.8]} 22... Nf4 {[%clk 0:00:45.9]} 23. Rd8 {[%clk 0:01:57.5]} 23...
Bb7 {[%clk 0:00:45.7]} 24. R1d7 {[%clk 0:01:46.9]} 24... Bc6 {[%clk 0:00:42.6]}
25. Rxf8+ {[%clk 0:01:45.7]} 25... Kxf8 {[%clk 0:00:42.7]} 26. Rc7 {[%clk
0:01:44.9]} 26... Bb5 {[%clk 0:00:42.5]} 27. g3 {[%clk 0:01:29.2]} 27... Nh3
{[%clk 0:00:22]} 28. Nxb5 {[%clk 0:01:19.7]} 28... axb5 {[%clk 0:00:22.9]} 29.
Rc8+ {[%clk 0:01:17.4]} 29... Ke7 {[%clk 0:00:22.4]} 30. Rh8 {[%clk 0:01:17.2]}
30... Ng1 {[%clk 0:00:22.5]} 31. Rxh7 {[%clk 0:01:15.9]} 31... Nxf3 {[%clk
0:00:22.7]} 32. Rh8 {[%clk 0:01:15]} 32... Kf6 {[%clk 0:00:20.1]} 33. Rb8 {[%clk
0:01:14.4]} 33... Ng5 {[%clk 0:00:19.3]} 34. e5+ {[%clk 0:01:08.3]} 34... Kf5
{[%clk 0:00:17.6]} 35. Rxb5 {[%clk 0:01:06.3]} 1-0

[Event "Early-Titled-Tuesday-Blitz-April-16-2024"]
[Site "Chess.com"]
[Date "2024.04.16"]
[Round "3"]
[White "ilqar_74"]
[Black "stepanosinovsky"]
[Result "1-0"]
[WhiteElo "2787"]
[BlackElo "2418"]
[TimeControl "180+1"]
[EndTime "8:27:41 PDT"]
[Termination "ilqar_74 won by resignation"]

1. e4 {[%clk 0:03:00.9]} 1... e5 {[%clk 0:02:57]} 2. Nf3 {[%clk 0:02:59.6]} 2...
Nc6 {[%clk 0:02:57.3]} 3. Bb5 {[%clk 0:02:58.9]} 3... a6 {[%clk 0:02:57.7]} 4.
Ba4 {[%clk 0:02:58.2]} 4... Nf6 {[%clk 0:02:57.8]} 5. O-O {[%clk 0:02:57.9]}
5... Be7 {[%clk 0:02:58.3]} 6. d4 {[%clk 0:02:57.1]} 6... exd4 {[%clk 0:02:57]}
7. e5 {[%clk 0:02:57.7]} 7... Ne4 {[%clk 0:02:56.6]} 8. Nxd4 {[%clk 0:02:58.1]}
8... O-O {[%clk 0:02:52.5]} 9. Nf5 {[%clk 0:02:57.9]} 9... d5 {[%clk 0:02:51.5]}
10. exd6 {[%clk 0:02:50.6]} 10... Bxf5 {[%clk 0:02:34.1]} 11. dxe7 {[%clk
0:02:49.1]} 11... Qxe7 {[%clk 0:02:34.8]} 12. Bxc6 {[%clk 0:02:48]} 12... bxc6
{[%clk 0:02:34.4]} 13. Qf3 {[%clk 0:02:48.5]} 13... Qf6 {[%clk 0:02:22.4]} 14.
Na3 {[%clk 0:02:32]} 14... h6 {[%clk 0:01:51.5]} 15. Nc4 {[%clk 0:02:27.3]}
15... Bg6 {[%clk 0:01:49.1]} 16. Qxf6 {[%clk 0:02:24.5]} 16... Nxf6 {[%clk
0:01:50]} 17. Ne3 {[%clk 0:02:24.3]} 17... Nd5 {[%clk 0:01:49.6]} 18. Nxd5
{[%clk 0:02:14.3]} 18... cxd5 {[%clk 0:01:50.5]} 19. c3 {[%clk 0:02:14.9]} 19...
c5 {[%clk 0:01:48.7]} 20. Be3 {[%clk 0:02:14.7]} 20... Rac8 {[%clk 0:01:43.3]}
21. Rfd1 {[%clk 0:02:14.4]} 21... Rfd8 {[%clk 0:01:40.7]} 22. f3 {[%clk
0:02:13.9]} 22... Rd7 {[%clk 0:01:34.5]} 23. Rd2 {[%clk 0:02:12.5]} 23... f6
{[%clk 0:01:29.3]} 24. Kf2 {[%clk 0:02:09.7]} 24... Bf7 {[%clk 0:01:26.5]} 25.
a3 {[%clk 0:02:10]} 25... a5 {[%clk 0:01:23.4]} 26. g4 {[%clk 0:02:08.3]} 26...
h5 {[%clk 0:01:22.5]} 27. h3 {[%clk 0:02:05.4]} 27... hxg4 {[%clk 0:01:21.2]}
28. hxg4 {[%clk 0:02:06.3]} 28... Rb7 {[%clk 0:01:21.5]} 29. f4 {[%clk
0:01:57.7]} 29... a4 {[%clk 0:01:13.5]} 30. f5 {[%clk 0:01:54.6]} 30... Rcb8
{[%clk 0:01:11.1]} 31. Rb1 {[%clk 0:01:53.6]} 31... Rb5 {[%clk 0:01:02.4]} 32.
Kg3 {[%clk 0:01:51.8]} 32... g6 {[%clk 0:01:00.9]} 33. Kf4 {[%clk 0:01:49.4]}
33... Kg7 {[%clk 0:01:00]} 34. Rh2 {[%clk 0:01:44.8]} 34... Rh8 {[%clk
0:00:50.1]} 35. Rxh8 {[%clk 0:01:26.2]} 35... Kxh8 {[%clk 0:00:51]} 36. g5
{[%clk 0:01:26.7]} 36... Kg7 {[%clk 0:00:47.7]} 37. c4 {[%clk 0:01:07.5]} 37...
d4 {[%clk 0:00:46.4]} 38. cxb5 {[%clk 0:01:07.2]} 38... dxe3 {[%clk 0:00:46.1]}
39. gxf6+ {[%clk 0:01:06.1]} 39... Kxf6 {[%clk 0:00:45.8]} 40. Kxe3 {[%clk
0:01:06.7]} 40... gxf5 {[%clk 0:00:44.3]} 41. b6 {[%clk 0:01:07.2]} 41... Bd5
{[%clk 0:00:44.5]} 42. Rd1 {[%clk 0:01:06.7]} 42... Bb7 {[%clk 0:00:40.7]} 43.
Rd7 {[%clk 0:01:06.2]} 1-0